bitfinex-derivatives/quotes_SOLF0:USTF0_20250831
["timestamp","ask_amount","ask_price","bid_price","bid_amount"]
[1756625027095,119.2,203.72,203.71,12.25589915]
[1756625027799,0.03,203.74,203.71,12.25589915]
[1756625028005,119.21,203.73,203.72,4.63589915]
[1756625029802,0.03,203.73,203.72,4.63589915]
[1756625030005,119.21,203.73,203.72,4.63589915]
[1756625034503,0.03,203.72,203.71,7.62]
[1756625034698,0.03,203.72,203.71,12.17488396]
[1756625036404,0.03,203.72,203.71,4.55488396]
[1756625037800,1.55886764,203.72,203.71,4.55488396]
[1756625042909,0.03,203.72,203.71,4.55488396]
[1756625043106,1.52886764,203.72,203.71,12.17488396]
[1756625044210,1.52886764,203.72,203.71,7.62]
[1756625044411,1.52886764,203.72,203.71,12.17275513]
[1756625049515,1.52886764,203.72,203.71,4.55275513]
[1756625054119,2.02886764,203.72,203.66,7.46]
[1756625054318,1.52886764,203.67,203.66,7.46]
[1756625054618,120.64886764,203.67,203.66,7.46]
[1756625058615,120.64886764,203.67,203.65,27.46]
[1756625058814,120.64886764,203.67,203.65,20.0]
[1756625059017,120.64886764,203.67,203.65,27.46]
[1756625059520,1.52886764,203.67,203.65,27.46]
[1756625059721,1.52886764,203.67,203.66,7.46]
[1756625064724,1.52886764,203.67,203.65,20.0]
[1756625064927,1.55886764,203.67,203.65,20.0]
[1756625065128,1.55886764,203.67,203.65,27.46]
[1756625066732,1.52886764,203.67,203.66,7.46]
[1756625095549,1.52886764,203.67,203.62,7.22]
[1756625095748,1.52886764,203.63,203.62,7.22]
[1756625096053,120.60886764,203.63,203.62,7.22]
[1756625103858,1.52886764,203.63,203.62,7.22]
[1756625104062,120.60886764,203.63,203.62,7.22]
[1756625109657,120.63886764,203.63,203.59,20.0]
[1756625109864,120.63886764,203.63,203.6,7.94]
[1756625110464,120.63886764,203.63,203.61,7.94]
[1756625112166,5.47417775,203.68,203.59,20.0]
[1756625112368,1.52886764,203.64,203.59,20.0]
[1756625112769,1.52886764,203.64,203.6,7.94]
[1756625114164,1.55886764,203.64,203.61,7.94]
[1756625114368,1.55886764,203.64,203.6,7.94]
[1756625114870,1.55886764,203.64,203.59,20.0]
[1756625115070,1.55886764,203.64,203.6,7.94]
[1756625115471,1.55886764,203.64,203.61,7.94]
[1756625115674,1.55886764,203.64,203.6,7.94]
[1756625116774,1.55886764,203.64,203.61,7.94]
[1756625116969,1.55886764,203.64,203.6,7.94]
[1756625117572,1.55886764,203.64,203.61,7.94]
[1756625117769,1.55886764,203.64,203.6,7.94]
[1756625117971,1.55886764,203.64,203.59,20.0]
[1756625118171,1.52886764,203.64,203.6,7.94]
[1756625122487,1.52886764,203.68,203.6,9.46886764]
[1756625125089,1.52886764,203.68,203.6,7.94]
[1756625125290,1.52886764,203.68,203.6,9.46886764]
[1756625125686,1.52886764,203.62,203.6,7.94]
[1756625125893,1.54886764,203.62,203.6,7.94]
[1756625127695,1.52886764,203.62,203.61,7.94]
[1756625129790,0.02,203.65,203.61,7.94]
[1756625129995,1.52886764,203.62,203.61,7.94]
[1756625130592,5.47417775,203.68,203.59,20.0]
[1756625130792,1.52886764,203.62,203.61,7.94]
[1756625141807,1.52886764,203.64,203.6,7.93]
[1756625144403,1.52886764,203.64,203.61,7.93]
[1756625144608,1.52886764,203.64,203.59,20.0]
[1756625144609,1.52886764,203.64,203.6,7.93]
[1756625144805,1.55886764,203.64,203.59,20.0]
[1756625145407,1.55886764,203.64,203.6,7.93]
[1756625145599,1.55886764,203.64,203.59,20.0]
[1756625145805,1.55886764,203.64,203.6,7.93]
[1756625146208,1.55886764,203.64,203.59,20.0]
[1756625146409,1.55886764,203.64,203.61,7.93]
[1756625146708,1.55886764,203.64,203.6,7.93]
[1756625147309,1.55886764,203.64,203.59,20.0]
[1756625147510,1.55886764,203.64,203.6,7.93]
[1756625148511,0.03,203.63,203.61,7.93]
[1756625148809,1.55886764,203.64,203.6,7.93]
[1756625149804,0.03,203.64,203.6,7.93]
[1756625150010,1.52886764,203.64,203.6,7.93]
[1756625152111,1.52886764,203.64,203.59,20.0]
[1756625152308,1.52886764,203.64,203.6,7.93]
[1756625155113,60.16,203.66,203.59,20.0]
[1756625155309,1.52886764,203.64,203.6,7.93]
[1756625156311,1.52886764,203.64,203.59,20.0]
[1756625156711,1.52886764,203.64,203.6,7.93]
[1756625157812,60.16,203.66,203.6,7.93]
[1756625158012,1.52886764,203.64,203.59,20.0]
[1756625158209,1.52886764,203.64,203.6,7.93]
[1756625164522,70.50265799,205.22,203.63,7.93]
[1756625164523,1.52886764,203.69,203.63,7.93]
[1756625164722,1.52886764,203.69,203.64,1.52886764]
[1756625164923,1.52886764,203.69,203.65,7.93]
[1756625165123,1.52886764,203.69,203.66,4.66664036]
[1756625165320,1.52886764,203.69,203.68,7.93]
[1756625165520,1.52886764,203.69,203.68,12.59664036]
[1756625171128,1.55886764,203.69,203.68,4.66664036]
[1756625171922,1.55886764,203.69,203.68,4.66027354]
[1756625172127,0.03,203.68,203.61,7.89]
[1756625172329,1.52886764,203.64,203.59,20.0]
[1756625172631,1.52886764,203.64,203.6,7.89]
[1756625172830,1.52886764,203.64,203.59,20.0]
[1756625173032,1.52886764,203.64,203.6,7.89]
[1756625174532,1.52886764,203.64,203.61,7.89]
[1756625174832,1.52886764,203.64,203.6,7.89]
[1756625175229,1.52886764,203.64,203.59,20.0]
[1756625175430,1.52886764,203.64,203.61,7.89]
[1756625175731,1.52886764,203.64,203.6,7.89]
[1756625176134,1.52886764,203.64,203.59,20.0]
[1756625176335,1.52886764,203.64,203.6,7.89]
[1756625176932,1.52886764,203.64,203.61,7.89]
[1756625177135,1.52886764,203.64,203.6,7.89]
[1756625177644,1.52886764,203.64,203.59,20.0]
[1756625177837,1.52886764,203.64,203.6,7.89]
[1756625178240,1.52886764,203.64,203.61,7.89]
[1756625178435,1.52886764,203.64,203.6,7.89]
[1756625178636,21.99,203.66,203.6,7.89]
[1756625178838,1.52886764,203.63,203.59,20.0]
[1756625179037,1.52886764,203.63,203.61,7.89]
[1756625179242,1.52886764,203.63,203.59,20.0]
[1756625179437,1.52886764,203.63,203.6,7.89]
[1756625181546,1.52886764,203.65,203.6,7.89]
[1756625181745,1.52886764,203.67,203.62,7.89]
[1756625186354,1.52886764,203.67,203.64,7.89]
[1756625186550,1.52886764,203.67,203.66,7.89]
[1756625186754,0.03,203.72,203.67,7.89]
[1756625186954,1.52886764,203.71,203.68,4.60361489]
[1756625187150,0.03,203.7,203.69,4.60361489]
[1756625189358,120.51886764,203.71,203.69,12.49361489]
[1756625189656,120.51886764,203.71,203.7,4.60361489]
[1756625190251,120.49886764,203.71,203.7,4.60361489]
[1756625193459,120.46886764,203.71,203.7,4.60030978]
[1756625193758,120.49886764,203.71,203.7,4.60030978]
[1756625200066,1.55886764,203.71,203.7,4.60030978]
[1756625200262,120.49886764,203.71,203.7,4.60030978]
[1756625204173,120.49886764,203.71,203.64,7.97]
[1756625204374,1.52886764,203.69,203.66,7.97]
[1756625204569,118.92,203.68,203.67,12.57052279]
[1756625205172,5.50417775,203.74,203.68,7.97]
[1756625205473,1.52886764,203.7,203.69,12.57052279]
[1756625205773,120.44886764,203.7,203.69,12.57052279]
[1756625206273,118.92,203.7,203.69,12.57052279]
[1756625206470,120.44886764,203.7,203.69,12.57052279]
[1756625208374,120.47886764,203.7,203.69,4.60052279]
[1756625209969,1.55886764,203.74,203.7,7.97]
[1756625210174,118.92,203.73,203.72,7.97]
[1756625210375,118.92,203.73,203.72,12.57052279]
[1756625210569,120.44886764,203.73,203.72,12.57052279]
[1756625210778,120.47886764,203.73,203.72,4.60052279]
[1756625214976,120.47886764,203.73,203.72,4.60983082]
[1756625221676,120.47886764,203.73,203.72,4.57983082]
[1756625221878,120.94886764,203.73,203.65,7.97]
[1756625222182,1.52886764,203.68,203.65,7.97]
[1756625222482,120.42886764,203.68,203.65,7.97]
[1756625227982,120.42886764,203.68,203.62,1.52886764]
[1756625228185,120.42886764,203.68,203.62,7.86]
[1756625233782,120.42886764,203.68,203.61,1.52886764]
[1756625233783,120.42886764,203.68,203.63,12.41480652]
[1756625233989,120.42886764,203.68,203.64,4.55480652]
[1756625234289,120.42886764,203.68,203.65,4.55480652]
[1756625234485,120.42886764,203.68,203.66,4.55480652]
[1756625234689,120.42886764,203.68,203.67,4.55480652]
[1756625235288,120.42886764,203.68,203.63,7.86]
[1756625235489,120.42886764,203.68,203.64,4.55462367]
[1756625235689,120.42886764,203.68,203.65,4.55462367]
[1756625235887,120.42886764,203.68,203.66,4.55462367]
[1756625236088,120.42886764,203.68,203.67,4.55462367]
[1756625237793,1.52886764,203.68,203.67,4.55462367]
[1756625237992,21.64886764,203.68,203.67,4.55462367]
[1756625238291,1.52886764,203.68,203.67,4.55462367]
[1756625238488,22.18886764,203.68,203.67,4.55462367]
[1756625241296,1.52886764,203.68,203.67,4.55462367]
[1756625242495,1.52886764,203.68,203.67,4.55405241]
[1756625243794,1.52886764,203.68,203.62,7.86]
[1756625249006,12.42,203.7,203.62,7.86]
[1756625249207,1.52886764,203.69,203.64,7.86]
[1756625249704,1.52886764,203.72,203.65,1.52886764]
[1756625249899,20.88,203.75,203.68,7.86]
[1756625250098,1.52886764,203.73,203.68,7.86]
[1756625250898,1.52886764,203.73,203.69,4.65966509]
[1756625251104,1.52886764,203.73,203.71,7.86]
[1756625251399,1.52886764,203.73,203.72,12.51966509]
[1756625252301,1.52886764,203.74,203.72,12.51966509]
[1756625252498,1.52886764,203.74,203.73,4.65966509]
[1756625252702,1.52886764,203.74,203.73,12.51966509]
[1756625253307,118.88,203.75,203.73,12.51966509]
[1756625253501,118.88,203.75,203.74,4.65966509]
[1756625255909,120.40886764,203.76,203.74,4.65966509]
[1756625256108,120.40886764,203.76,203.75,4.65966509]
[1756625256911,118.88,203.76,203.75,12.51966509]
[1756625257210,118.88,203.76,203.75,12.5146109]
[1756625258607,1.52886764,203.78,203.75,12.5146109]
[1756625258813,118.86,203.77,203.76,4.6546109]
[1756625260504,1.52886764,203.78,203.76,4.6546109]
[1756625260708,118.86,203.77,203.75,7.86]
[1756625260903,118.86,203.77,203.76,4.65134589]
[1756625264115,118.86,203.77,203.76,12.21134589]
[1756625264419,118.86,203.77,203.76,12.20655098]
[1756625265024,118.86,203.77,203.76,4.64655098]
[1756625265711,118.84,203.77,203.76,4.64655098]
[1756625267715,118.84,203.77,203.71,1.52886764]
[1756625267911,118.84,203.77,203.72,4.58049811]
[1756625268114,118.84,203.77,203.74,7.56]
[1756625268317,118.84,203.77,203.75,4.58049811]
[1756625268519,118.84,203.77,203.76,4.58049811]
[1756625268718,118.84,203.77,203.76,4.57982657]
[1756625278633,118.84,203.77,203.76,4.58023944]
[1756625282235,120.36886764,203.77,203.76,4.58023944]
[1756625284542,120.36886764,203.77,203.71,50.0]
[1756625284742,120.36886764,203.77,203.73,7.56]
[1756625284940,120.36886764,203.77,203.74,4.5827791]
[1756625285140,120.36886764,203.77,203.75,4.5827791]
[1756625285340,120.36886764,203.77,203.76,4.5827791]
[1756625286639,330.02,203.79,203.76,4.5827791]
[1756625286843,118.82,203.78,203.77,12.1427791]
[1756625287240,331.54886764,203.79,203.77,12.1427791]
[1756625287543,331.54886764,203.79,203.78,4.5827791]
[1756625287744,450.36886764,203.79,203.78,4.5827791]
[1756625288345,450.36886764,203.79,203.78,4.58544716]
[1756625288747,450.36886764,203.79,203.71,57.73]
[1756625288947,1.52886764,203.75,203.72,4.58570718]
[1756625289247,118.82,203.74,203.71,50.0]
[1756625289437,118.82,203.73,203.72,7.73]
[1756625290343,1.52886764,203.77,203.71,51.52886764]
[1756625290542,118.82,203.76,203.71,51.52886764]
[1756625290740,1.52886764,203.77,203.73,7.73]
[1756625290942,118.82,203.76,203.72,7.73]
[1756625292846,118.82,203.76,203.71,51.52886764]
[1756625293549,118.82,203.76,203.72,7.73]
[1756625293736,118.82,203.76,203.71,51.52886764]
[1756625293938,118.8,203.75,203.71,51.52886764]
[1756625294141,118.8,203.75,203.72,7.73]
[1756625294347,118.8,203.75,203.71,51.52886764]
[1756625294946,118.8,203.75,203.72,7.73]
[1756625295146,118.8,203.75,203.71,51.52886764]
[1756625295449,1.52886764,203.81,203.74,7.73]
[1756625295647,118.8,203.78,203.74,7.73]
[1756625296048,118.8,203.78,203.73,1.52886764]
[1756625296247,118.8,203.78,203.74,7.73]
[1756625296552,118.8,203.78,203.73,1.52886764]
[1756625297747,118.8,203.78,203.74,7.73]
[1756625298050,118.8,203.78,203.73,1.52886764]
[1756625298252,118.8,203.78,203.74,7.73]
[1756625298546,118.8,203.78,203.73,1.52886764]
[1756625299047,118.8,203.78,203.74,7.73]
[1756625299352,118.8,203.78,203.73,1.52886764]
[1756625299547,118.8,203.78,203.74,7.73]
[1756625299745,118.8,203.78,203.73,1.52886764]
[1756625300152,118.8,203.78,203.74,7.73]
[1756625300554,118.8,203.78,203.71,59.25886764]
[1756625300555,120.32886764,203.78,203.71,59.25886764]
[1756625300749,120.32886764,203.78,203.72,4.55787586]
[1756625300951,120.32886764,203.78,203.73,4.55787586]
[1756625301150,120.32886764,203.78,203.71,59.25886764]
[1756625301151,120.32886764,203.78,203.74,4.55787586]
[1756625301347,120.32886764,203.78,203.75,4.55787586]
[1756625301554,120.32886764,203.78,203.76,4.55787586]
[1756625301855,120.32886764,203.78,203.77,4.55787586]
[1756625303350,118.8,203.78,203.77,4.55787586]
[1756625303555,120.32886764,203.78,203.77,4.55787586]
[1756625305057,118.8,203.78,203.77,4.55787586]
[1756625306259,118.8,203.8,203.77,12.28787586]
[1756625306463,118.8,203.8,203.78,4.55787586]
[1756625306761,118.8,203.8,203.79,4.55787586]
[1756625309968,118.8,203.8,203.79,4.56600327]
[1756625310869,118.8,203.8,203.79,4.56560707]
[1756625317269,5.47417775,203.84,203.79,4.56560707]
[1756625317572,118.78,203.83,203.8,12.29560707]
[1756625317775,118.78,203.83,203.81,4.56560707]
[1756625317975,118.78,203.83,203.82,4.56560707]
[1756625320676,118.78,203.83,203.79,7.48]
[1756625320877,118.78,203.83,203.8,12.18426577]
[1756625321080,118.78,203.83,203.81,4.70426577]
[1756625321380,118.78,203.83,203.82,4.70426577]
[1756625322487,118.76,203.84,203.82,4.70426577]
[1756625322670,118.76,203.84,203.83,4.70426577]
[1756625325581,118.76,203.84,203.83,12.18426577]
[1756625327481,118.76,203.84,203.83,4.70426577]
[1756625328984,1.52886764,203.9,203.83,12.18426577]
[1756625329184,120.28886764,203.9,203.84,4.70426577]
[1756625329382,120.28886764,203.9,203.85,4.70426577]
[1756625329583,120.28886764,203.9,203.86,4.70426577]
[1756625329786,120.28886764,203.9,203.87,4.70426577]
[1756625329981,120.28886764,203.9,203.88,4.70426577]
[1756625330182,120.28886764,203.9,203.83,7.48]
[1756625330481,120.28886764,203.9,203.84,4.63613152]
[1756625330681,120.28886764,203.9,203.85,4.63613152]
[1756625330884,120.28886764,203.9,203.86,4.63613152]
[1756625331084,120.28886764,203.9,203.87,4.63613152]
[1756625331285,120.28886764,203.9,203.88,4.63613152]
[1756625331482,120.28886764,203.9,203.83,7.48]
[1756625331781,120.28886764,203.9,203.84,4.63567572]
[1756625331982,120.28886764,203.9,203.85,4.63567572]
[1756625332182,120.28886764,203.9,203.86,4.63567572]
[1756625332383,120.28886764,203.9,203.87,4.63567572]
[1756625332583,120.28886764,203.9,203.88,4.63567572]
[1756625332783,120.28886764,203.9,203.83,7.48]
[1756625332979,120.28886764,203.9,203.84,4.63527192]
[1756625333181,120.28886764,203.9,203.85,4.63527192]
[1756625333387,120.28886764,203.9,203.86,4.63527192]
[1756625333587,120.28886764,203.9,203.87,4.63527192]
[1756625333781,120.28886764,203.9,203.88,4.63527192]
[1756625333982,120.28886764,203.9,203.89,4.63527192]
[1756625335982,120.26886764,203.9,203.89,4.63527192]
[1756625336989,118.74,203.9,203.89,4.63527192]
[1756625338188,120.26886764,203.9,203.89,4.63527192]
[1756625339184,118.74,203.9,203.89,4.63527192]
[1756625339390,120.26886764,203.9,203.89,4.63527192]
[1756625340393,118.74,203.9,203.89,4.63527192]
[1756625340592,120.26886764,203.9,203.89,4.63527192]
[1756625341294,120.26886764,203.9,203.85,7.48]
[1756625341486,1.52886764,203.89,203.86,4.64474984]
[1756625341683,1.52886764,203.89,203.87,4.64474984]
[1756625341884,1.52886764,203.89,203.88,4.64474984]
[1756625343091,118.72,203.9,203.88,12.12474984]
[1756625343291,118.72,203.9,203.89,4.64474984]
[1756625351904,118.72,203.9,203.89,4.64075052]
[1756625352293,120.24886764,203.9,203.89,4.64075052]
[1756625354004,120.24886764,203.9,203.8,10.0]
[1756625354005,120.74886764,203.9,203.8,10.0]
[1756625354203,1.52886764,203.85,203.81,7.81]
[1756625354404,120.28886764,203.85,203.81,7.81]
[1756625357903,118.76,203.85,203.81,7.81]
[1756625358104,120.28886764,203.85,203.81,7.81]
[1756625358608,1.52886764,203.85,203.81,7.81]
[1756625360098,118.78,203.86,203.81,7.81]
[1756625360303,118.78,203.86,203.8,11.52886764]
[1756625360905,118.78,203.86,203.81,7.81]
[1756625361413,118.78,203.86,203.8,11.52886764]
[1756625361607,1.52886764,203.87,203.8,11.52886764]
[1756625361812,8.04886764,203.88,203.81,7.81]
[1756625363910,8.04886764,203.88,203.86,100.0]
[1756625365206,1.52886764,203.88,203.86,100.0]
[1756625365813,1.52886764,203.88,203.86,107.81]
[1756625366116,1.52886764,203.88,203.87,12.37928089]
[1756625368814,1.52886764,203.88,203.87,4.56928089]
[1756625369911,120.28886764,203.9,203.88,7.81]
[1756625370212,120.28886764,203.9,203.89,4.56928089]
[1756625373409,120.28886764,203.9,203.89,4.57014527]
[1756625376220,1.52886764,203.9,203.89,4.57014527]
[1756625376422,120.24886764,203.9,203.89,4.57014527]
[1756625377315,21.77773528,203.9,203.89,4.57014527]
[1756625378221,20.24886764,203.9,203.89,4.57014527]
[1756625383222,1.52886764,203.91,203.89,4.57014527]
[1756625383522,1.52886764,203.91,203.9,4.57014527]
[1756625383929,39.18,203.92,203.9,4.57014527]
[1756625384126,1.52886764,203.91,203.87,7.81]
[1756625384420,1.52886764,203.91,203.88,4.57077411]
[1756625384625,1.52886764,203.91,203.89,4.57077411]
[1756625384823,1.52886764,203.91,203.9,4.57077411]
[1756625389131,1.52886764,203.91,203.87,7.81]
[1756625389331,1.52886764,203.91,203.88,11.99162259]
[1756625389529,1.52886764,203.91,203.89,4.57162259]
[1756625389727,1.52886764,203.91,203.9,4.57162259]
[1756625394939,1.52886764,203.91,203.9,4.56495229]
[1756625395740,1.52886764,203.91,203.9,4.56508925]
[1756625397841,1.52886764,203.91,203.9,11.98508925]
[1756625404643,1.52886764,203.91,203.9,11.98791296]
[1756625405247,7.00304539,203.91,203.87,7.42]
[1756625405549,5.47417775,203.91,203.88,4.56985559]
[1756625405739,5.47417775,203.91,203.89,4.56985559]
[1756625405943,5.47417775,203.91,203.9,4.56985559]
[1756625406436,5.47417775,203.91,203.87,7.42]
[1756625406645,1.52886764,203.88,203.87,7.42]
[1756625408549,5.47417775,203.91,203.83,7.88]
[1756625408749,1.52886764,203.9,203.83,7.88]
[1756625411451,7.00304539,203.91,203.83,7.88]
[1756625412350,5.47417775,203.91,203.83,7.88]
[1756625417650,5.47417775,203.91,203.85,7.88]
[1756625417855,5.47417775,203.91,203.8,14.11917422]
[1756625417856,5.47417775,203.93,203.87,7.88]
[1756625418055,5.47417775,203.94,203.87,7.88]
[1756625418544,5.47417775,203.94,203.82,4.11917422]
[1756625418545,5.47417775,203.94,203.89,7.88]
[1756625418745,7.00304539,203.95,203.91,7.88]
[1756625418954,7.00304539,203.95,203.92,4.54774097]
[1756625419155,7.00304539,203.95,203.93,4.54774097]
[1756625419451,7.00304539,203.95,203.94,4.54774097]
[1756625422158,1.52886764,203.95,203.94,4.54774097]
[1756625425051,118.7,203.96,203.94,4.54774097]
[1756625425249,118.7,203.96,203.95,4.54774097]
[1756625425449,120.22886764,203.96,203.95,4.54774097]
[1756625425958,120.22886764,203.96,203.95,4.66165445]
[1756625426259,118.7,203.96,203.95,4.66165445]
[1756625426460,120.22886764,203.96,203.95,4.66165445]
[1756625429562,120.22886764,203.96,203.95,4.60134045]
[1756625436271,1.52886764,203.96,203.95,4.60134045]
[1756625436464,120.20886764,203.96,203.95,4.60134045]
[1756625436866,120.20886764,203.96,203.95,4.59708409]
[1756625437267,118.68,203.96,203.95,4.59698947]
[1756625437469,120.20886764,203.96,203.95,4.59698947]
[1756625440871,118.68,203.96,203.95,4.59698947]
[1756625441370,120.20886764,203.96,203.95,4.59698947]
[1756625443172,118.68,203.96,203.95,4.59698947]
[1756625443372,120.20886764,203.96,203.95,4.59698947]
[1756625444267,5.47417775,203.99,203.95,4.59698947]
[1756625444472,118.66,203.98,203.96,4.59698947]
[1756625444672,1.52886764,203.97,203.95,7.53]
[1756625444874,1.52886764,203.97,203.96,12.12563341]
[1756625445570,1.52886764,203.97,203.96,4.59563341]
[1756625446170,5.47417775,203.99,203.97,7.53]
[1756625446369,5.47417775,203.99,203.86,4.12334076]
[1756625446574,5.47417775,203.99,203.8,18.22020819]
[1756625446575,121.16886764,203.99,203.98,7.53]
[1756625446774,121.16886764,203.99,203.98,4.59393915]
[1756625447472,121.16886764,203.99,203.98,4.82661075]
[1756625448266,119.64,203.99,203.98,4.82661075]
[1756625448574,121.16886764,203.99,203.98,4.82661075]
[1756625449677,119.64,203.99,203.98,4.82661075]
[1756625449877,121.16886764,203.99,203.98,4.82661075]
[1756625452474,1.52886764,203.99,203.98,4.82661075]
[1756625452781,121.80886764,203.99,203.98,4.82661075]
[1756625453777,122.30886764,203.99,203.91,7.53]
[1756625453971,1.52886764,203.92,203.85,7.53]
[1756625454171,120.38,203.91,203.85,7.53]
[1756625455482,1.52886764,203.9,203.85,7.53]
[1756625455874,1.52886764,203.89,203.85,7.53]
[1756625456275,120.38,203.91,203.85,7.53]
[1756625456472,1.52886764,203.9,203.85,7.53]
[1756625457472,1.52886764,203.9,203.84,7.53]
[1756625460385,1.52886764,203.89,203.84,7.53]
[1756625462085,120.28,203.91,203.84,7.53]
[1756625462385,1.52886764,203.89,203.84,7.53]
[1756625463880,20.88,203.92,203.84,7.53]
[1756625464088,1.52886764,203.89,203.84,7.53]
[1756625465487,1.52886764,203.9,203.84,7.53]
[1756625465682,1.52886764,203.9,203.85,4.58264863]
[1756625465988,1.52886764,203.9,203.86,4.58264863]
[1756625466190,1.52886764,203.9,203.88,7.53]
[1756625466378,1.52886764,203.9,203.89,4.58264863]
[1756625467687,1.52886764,203.9,203.88,7.53]
[1756625467887,1.52886764,203.9,203.89,4.58154893]
[1756625472988,1.52886764,203.9,203.81,7.97]
[1756625473193,1.52886764,203.84,203.81,7.97]
[1756625474192,1.52886764,203.84,203.8,10.0]
[1756625474494,1.52886764,203.84,203.81,7.97]
[1756625475795,1.52886764,203.84,203.8,10.0]
[1756625475992,1.52886764,203.82,203.81,7.97]
[1756625476491,5.49869867,203.91,203.81,7.97]
[1756625476692,10.78738049,203.99,203.81,7.97]
[1756625476693,1.52886764,203.87,203.81,7.97]
[1756625479299,1.52886764,203.85,203.81,7.97]
[1756625479497,1.52886764,203.85,203.8,10.0]
[1756625479697,1.52886764,203.85,203.81,7.97]
[1756625480093,1.52886764,203.85,203.8,10.0]
[1756625480295,1.52886764,203.85,203.81,7.97]
[1756625482295,1.52886764,203.85,203.8,10.0]
[1756625482489,1.52886764,203.85,203.81,7.97]
[1756625485002,1.52886764,203.85,203.8,10.0]
[1756625485205,1.52886764,203.85,203.81,7.97]
[1756625490909,1.52886764,203.85,203.8,10.0]
[1756625491109,1.52886764,203.85,203.81,7.97]
[1756625491313,1.52886764,203.85,203.8,10.0]
[1756625491510,1.52886764,203.83,203.81,7.97]
[1756625491914,1.52886764,203.83,203.8,10.0]
[1756625492115,1.52886764,203.83,203.81,7.97]
[1756625492410,1.52886764,203.83,203.8,10.0]
[1756625493011,1.52886764,203.83,203.81,7.97]
[1756625493210,1.52886764,203.83,203.8,17.97]
[1756625493418,1.52886764,203.81,203.8,17.97]
[1756625499110,1.52886764,203.81,203.8,10.0]
[1756625499512,1.52886764,203.81,203.75,7.68]
[1756625499712,1.52886764,203.76,203.75,7.68]
[1756625506125,1.52886764,203.76,203.62,8.22020819]
[1756625506126,1.52886764,203.76,203.69,7.68]
[1756625506325,1.52886764,203.73,203.69,7.68]
[1756625506723,1.52886764,203.73,203.66,1.52886764]
[1756625506922,1.52886764,203.73,203.67,7.68]
[1756625507121,1.52886764,203.71,203.67,7.68]
[1756625507523,1.52886764,203.71,203.65,7.68]
[1756625508222,1.52886764,203.69,203.63,7.68]
[1756625509220,5.49869867,203.79,203.63,7.68]
[1756625509423,1.52886764,203.72,203.65,7.68]
[1756625509621,1.52886764,203.73,203.67,7.68]
[1756625509826,1.52886764,203.75,203.69,7.68]
[1756625511323,11.36,203.79,203.69,7.68]
[1756625511324,2.38608648,203.77,203.69,7.68]
[1756625518724,11.36,203.79,203.69,7.68]
[1756625518928,2.38608648,203.76,203.69,7.68]
[1756625520328,329.84,203.81,203.69,7.68]
[1756625520533,121.92608648,203.79,203.69,7.68]
[1756625524945,2.38608648,203.76,203.69,7.68]
[1756625526444,121.92608648,203.79,203.69,7.68]
[1756625527546,0.02,203.78,203.69,7.68]
[1756625529248,119.42,203.78,203.69,7.68]
[1756625530147,119.42,203.78,203.64,4.12334076]
[1756625530148,119.48,203.8,203.71,7.48]
[1756625533951,0.02,203.79,203.71,7.48]
[1756625534856,0.02,203.78,203.71,7.48]
[1756625535851,119.48,203.8,203.66,7.48]
[1756625535852,0.02,203.75,203.66,7.48]
[1756625536155,119.44,203.75,203.66,7.48]
[1756625537248,0.02,203.74,203.66,7.48]
[1756625537455,119.42,203.75,203.66,7.48]
[1756625537654,0.02,203.72,203.66,7.48]
[1756625538961,2.38608648,203.73,203.66,7.48]
[1756625542864,2.38608648,203.74,203.66,7.48]
[1756625545864,119.44,203.75,203.66,7.48]
[1756625546065,2.38608648,203.74,203.66,7.48]
[1756625553069,0.03,203.73,203.66,7.48]
[1756625554964,2.38608648,203.74,203.66,7.48]
[1756625555460,0.03,203.73,203.66,7.48]
[1756625555868,2.38608648,203.74,203.66,7.48]
[1756625556067,0.03,203.73,203.66,7.48]